bitfinex/quotes_ETHUSD_20250706
["timestamp","ask_amount","ask_price","bid_price","bid_amount"]
[1751831266789,0.7514,2541.3,2541.1,0.002]
[1751831266992,8.70125714,2541.2,2541.1,0.002]
[1751831267192,12.63640588,2541.2,2541.1,0.002]
[1751831278684,8.70125714,2541.2,2541.1,0.002]
[1751831279866,0.9474,2541.3,2541.1,0.002]
[1751831280070,10.6434,2541.3,2541.1,0.002]
[1751831281088,2.6874,2541.3,2541.1,0.002]
[1751831281500,1.936,2541.3,2541.2,3.93514874]
[1751831281888,10.197,2541.5,2541.2,3.93514874]
[1751831282089,11.937,2541.5,2541.2,4.13114874]
[1751831282402,10.001,2541.5,2541.2,4.13114874]
[1751831282609,0.001,2541.5,2541.4,3.93483906]
[1751831283108,0.001,2541.5,2541.3,4.13090415]
[1751831284324,0.001,2541.5,2541.3,0.196]
[1751831284810,0.001,2541.5,2541.3,4.13098761]
[1751831286210,0.001,2541.5,2541.3,4.1309895]
[1751831289185,0.001,2541.5,2541.3,0.196]
[1751831290305,3.9357052,2541.5,2541.3,0.196]
[1751831290604,12.63696234,2541.5,2541.3,0.196]
[1751831290815,3.93501328,2541.3,2541.1,0.002]
[1751831291000,8.70125714,2541.3,2541.1,0.198]
[1751831294541,12.63628571,2541.3,2541.1,0.198]
[1751831294859,8.70125714,2541.3,2541.1,0.198]
[1751831295339,12.63628438,2541.3,2541.1,0.198]
[1751831296137,8.70125714,2541.3,2541.1,0.198]
[1751831298638,1.936,2541.4,2541.1,0.198]
[1751831298940,1.936,2541.4,2541.1,4.92956884]
[1751831300842,1.936,2541.4,2541.2,3.93511413]
[1751831304043,1.936,2541.4,2541.1,4.92951212]
[1751831305440,1.936,2541.4,2541.1,0.9943]
[1751831305623,14.5721377,2541.4,2541.1,0.198]
[1751831305823,10.63725714,2541.4,2541.1,0.198]
[1751831306448,10.63725714,2541.4,2541.1,4.13327216]
[1751831308543,14.57210196,2541.4,2541.1,0.198]
[1751831308736,15.38170196,2541.4,2541.1,0.198]
[1751831308942,8.70125714,2541.2,2541.1,0.002]
[1751831309119,13.44600588,2541.2,2541.1,0.002]
[1751831309444,9.51408905,2541.2,2541.1,0.002]
[1751831312252,23.44923779,2541.2,2541.1,0.002]
[1751831312747,31.40423779,2541.2,2541.1,0.002]
[1751831313447,31.75717815,2541.2,2541.1,0.002]
[1751831314214,23.80215982,2541.2,2541.1,0.002]
[1751831314413,33.69315982,2541.2,2541.1,0.002]
[1751831315026,23.80215982,2541.2,2541.1,0.002]
[1751831315345,33.69315982,2541.2,2541.1,0.002]
[1751831316248,33.34023779,2541.2,2541.1,0.002]
[1751831316428,33.70874418,2541.2,2541.1,0.002]
[1751831323131,33.34023779,2541.2,2541.1,0.002]
[1751831323338,33.70869827,2541.2,2541.1,0.002]
[1751831323843,33.70868819,2541.2,2541.1,0.002]
[1751831332357,33.34023779,2541.2,2541.1,0.002]
[1751831332542,33.70874243,2541.2,2541.1,0.002]
[1751831333161,33.70875256,2541.2,2541.1,0.002]
[1751831335675,29.77360382,2541.2,2541.1,0.002]
[1751831338674,28.96400382,2541.2,2541.1,0.002]
[1751831338864,27.21177292,2541.2,2541.1,0.002]
[1751831341169,27.21224681,2541.2,2541.1,0.002]
[1751831343949,31.1476385,2541.2,2541.1,0.002]
[1751831344153,31.9475385,2541.2,2541.1,0.002]
[1751831345159,28.01238976,2541.2,2541.1,0.002]
[1751831345988,27.21248976,2541.2,2541.1,0.002]
[1751831346893,27.21253783,2541.2,2541.1,0.002]
[1751831347696,31.14768657,2541.2,2541.1,0.002]
[1751831350115,30.77840689,2541.2,2541.1,0.002]
[1751831350267,31.14768913,2541.2,2541.1,0.002]
[1751831350592,30.77840689,2541.2,2541.1,0.002]
[1751831350801,27.21254296,2541.2,2541.1,0.002]
[1751831351202,31.1476917,2541.2,2541.1,0.002]
[1751831351403,27.21254296,2541.2,2541.1,0.002]
[1751831351775,31.1476917,2541.2,2541.1,0.002]
[1751831353705,27.21254296,2541.2,2541.1,0.002]
[1751831358914,31.1476917,2541.2,2541.1,0.002]
[1751831359506,31.14768951,2541.2,2541.1,0.002]
[1751831360224,27.21254077,2541.2,2541.1,0.002]
[1751831361783,38.85221575,2541.2,2541.1,0.002]
[1751831362014,14.1313036,2541.1,2541.0,0.002]
[1751831362233,15.25608622,2541.1,2541.0,0.002]
[1751831362993,15.25931813,2541.1,2541.0,0.002]
[1751831365011,23.94823137,2541.1,2541.0,0.002]
[1751831366412,23.94748936,2541.1,2541.0,0.002]
[1751831366797,3.93596319,2540.7,2540.2,0.7649]
[1751831367007,3.93596319,2540.7,2540.2,4.70148859]
[1751831367008,8.68891324,2540.4,2540.2,4.70148859]
[1751831367394,8.68891324,2540.4,2540.3,0.1968]
[1751831373716,8.68891324,2540.4,2540.3,4.13334292]
[1751831375136,10.62391324,2540.6,2540.3,4.13334292]
[1751831375419,0.36815654,2540.5,2540.3,4.13334292]
[1751831375587,0.36815654,2540.5,2540.3,4.13534292]
[1751831376715,0.36815654,2540.5,2540.4,3.93638797]
[1751831376924,1.935,2540.6,2540.4,3.93638797]
[1751831377320,1.935,2540.6,2540.5,4.13303302]
[1751831377510,2.30313651,2540.6,2540.5,4.13303302]
[1751831378093,1.935,2540.6,2540.5,4.13303302]
[1751831378311,2.30317762,2540.6,2540.5,4.13303302]
[1751831378819,2.30314759,2540.6,2540.5,4.13303302]
[1751831378990,2.3031542,2540.6,2540.5,4.13303302]
[1751831379193,2.30315453,2540.6,2540.5,4.13303302]
[1751831380718,1.935,2540.6,2540.5,4.13303302]
[1751831380941,2.30320651,2540.6,2540.5,4.13303302]
[1751831382293,0.36820651,2540.6,2540.5,4.90723302]
[1751831382499,0.00323191,2541.1,2541.0,3.93545848]
[1751831382693,0.37154815,2541.1,2541.0,4.70965848]
[1751831382924,0.37154815,2541.1,2541.0,4.90565848]
[1751831385916,0.00323191,2541.1,2541.0,4.90565848]
[1751831388338,10.93823191,2541.2,2541.1,3.9353036]
[1751831388541,1.30652443,2541.2,2541.1,3.9353036]
[1751831388835,0.93823191,2541.2,2541.1,3.9353036]
[1751831398138,0.93823191,2541.2,2541.1,11.8843036]
[1751831400360,0.93823191,2541.2,2541.0,0.196]
[1751831400562,8.68891324,2541.1,2541.0,0.196]
[1751831400739,9.46901324,2541.1,2540.9,0.196]
[1751831401424,1.933,2541.1,2541.0,3.93545848]
[1751831401623,1.933,2541.2,2541.1,3.93515655]
[1751831402240,1.933,2541.2,2541.1,4.81718805]
[1751831402610,9.47001324,2541.5,2541.1,4.81718805]
[1751831402811,1.933,2541.4,2541.3,4.13097763]
[1751831403130,11.933,2541.4,2541.3,0.196]
[1751831404515,12.30079938,2541.4,2541.3,0.196]
[1751831405027,11.933,2541.4,2541.3,0.196]
[1751831405360,12.30085402,2541.4,2541.3,0.196]
[1751831405747,12.30087873,2541.4,2541.3,0.196]
[1751831409751,10.36787873,2541.4,2541.3,0.196]
[1751831409921,12.30087873,2541.4,2541.3,0.196]
[1751831413236,2.30087873,2541.4,2541.3,4.1309939]
[1751831413438,0.36787873,2541.4,2541.3,4.1309939]
[1751831413632,2.30087873,2541.4,2541.3,4.1309939]
[1751831414340,1.933,2541.4,2541.3,4.1309939]
[1751831414536,2.30189295,2541.4,2541.3,4.1309939]
[1751831414737,2.30189295,2541.4,2541.3,0.196]
[1751831414949,2.30189898,2541.4,2541.3,0.196]
[1751831415542,0.36889898,2541.4,2541.3,0.196]
[1751831416260,0.36889898,2541.4,2541.3,4.1309939]
[1751831417570,0.36898517,2541.4,2541.3,4.1309939]
[1751831421167,0.36898517,2541.4,2541.3,0.196]
[1751831423760,10.62291324,2541.5,2541.3,0.196]
[1751831423936,0.36905678,2541.4,2541.3,0.196]
[1751831424366,0.36906203,2541.4,2541.3,4.1309939]
[1751831430942,7.31532617,2541.4,2541.3,4.1309939]
[1751831432875,7.31532617,2541.4,2541.3,0.196]
[1751831433063,7.68456662,2541.4,2541.3,0.196]
[1751831433757,7.68456547,2541.4,2541.3,0.196]
[1751831436676,19.04413655,2541.4,2541.3,0.196]
[1751831436876,19.86173655,2541.4,2541.3,0.196]
[1751831438878,21.60054464,2541.4,2541.3,0.196]
[1751831441483,20.24097356,2541.4,2541.3,0.196]
[1751831442351,19.87182347,2541.4,2541.3,0.196]
[1751831442551,19.42343068,2541.4,2541.3,0.196]
[1751831445582,19.05422347,2541.4,2541.3,0.196]
[1751831445887,19.42339604,2541.4,2541.3,0.196]
[1751831451765,19.05422347,2541.4,2541.3,0.196]
[1751831451964,19.42338368,2541.4,2541.3,0.196]
[1751831452703,3.9352378,2541.2,2541.0,0.002]
[1751831452874,31.69633604,2541.1,2541.0,0.002]
[1751831454095,32.24633604,2541.1,2541.0,0.002]
[1751831460705,31.87717583,2541.1,2541.0,0.002]
[1751831461016,32.24520642,2541.1,2541.0,0.002]
[1751831463097,32.24511642,2541.1,2541.0,0.002]
[1751831469285,32.24521464,2541.1,2541.0,0.002]
[1751831469705,32.24521828,2541.1,2541.0,0.002]
[1751831471416,31.69521828,2541.1,2541.0,0.002]
[1751831471619,30.93341828,2541.1,2541.0,0.002]
[1751831471821,27.19411468,2541.1,2541.0,0.002]
[1751831472510,27.19413877,2541.1,2541.0,0.002]
[1751831472915,31.12944237,2541.1,2541.0,0.002]
[1751831475726,27.19413877,2541.1,2541.0,0.002]
[1751831476297,31.12944237,2541.1,2541.0,0.002]
[1751831478598,31.12982801,2541.1,2541.0,0.002]
[1751831479100,31.12983044,2541.1,2541.0,0.002]
[1751831480027,14.49975821,2541.1,2541.0,0.002]
[1751831480216,27.19352684,2541.1,2541.0,0.002]
[1751831481326,31.94213044,2541.1,2541.0,0.002]
[1751831485023,31.12883044,2541.1,2541.0,0.002]
[1751831485612,19.24952684,2541.1,2541.0,0.002]
[1751831485807,27.19352684,2541.1,2541.0,0.002]
[1751831487810,26.82507223,2541.1,2541.0,0.002]
[1751831488010,27.1941298,2541.1,2541.0,0.002]
[1751831489812,12.49605757,2541.1,2541.0,0.002]
[1751831490046,20.24405757,2541.1,2541.0,0.7664]
[1751831490535,20.24405757,2541.1,2541.0,4.70185848]
[1751831491739,12.30005757,2541.1,2541.0,4.70185848]
[1751831494045,12.29983697,2541.1,2541.0,0.7664]
[1751831497118,11.931,2541.1,2541.0,0.7664]
[1751831497320,12.29974442,2541.1,2541.0,0.7664]
[1751831498032,12.29972338,2541.1,2541.0,0.7664]
[1751831498865,10.36872338,2541.1,2541.0,0.7664]
[1751831499036,12.29872338,2541.1,2541.0,0.7664]
[1751831499662,12.29870175,2541.1,2541.0,0.7664]
[1751831500461,12.29869941,2541.1,2541.0,0.7664]
[1751831501149,20.98377164,2541.1,2541.0,0.002]
[1751831503356,24.91907524,2541.1,2541.0,0.002]
[1751831504169,20.98377164,2541.1,2541.0,0.002]
[1751831506359,20.61507223,2541.1,2541.0,0.002]
[1751831506541,28.92582551,2541.1,2541.0,0.002]
[1751831507254,28.55707223,2541.1,2541.0,0.002]
[1751831507433,28.92583155,2541.1,2541.0,0.002]
[1751831509658,28.92584528,2541.1,2541.0,0.002]
[1751831515668,28.55707223,2541.1,2541.0,0.002]
[1751831515832,28.92622352,2541.1,2541.0,0.002]
[1751831517486,32.86152712,2541.1,2541.0,0.002]
[1751831517757,33.82752712,2541.1,2541.0,0.002]
[1751831521666,29.89222352,2541.1,2541.0,0.002]
[1751831521848,33.82752712,2541.1,2541.0,0.002]
[1751831524179,33.82739787,2541.1,2541.0,0.002]
[1751831527660,33.05739787,2541.1,2541.0,0.002]
[1751831533393,32.68837583,2541.1,2541.0,0.002]
[1751831533689,33.05749895,2541.1,2541.0,0.002]
[1751831533995,33.05750058,2541.1,2541.0,0.002]
[1751831536585,33.05750972,2541.1,2541.0,0.002]
[1751831537089,31.32223576,2541.1,2541.0,0.002]
[1751831538835,17.31893216,2541.1,2541.0,0.002]
[1751831539017,27.18693216,2541.1,2541.0,0.002]
[1751831542642,26.81779827,2541.1,2541.0,0.002]
[1751831542847,27.18697293,2541.1,2541.0,0.002]
[1751831543344,27.186984,2541.1,2541.0,0.002]
[1751831544553,17.318984,2541.1,2541.0,0.002]
[1751831544757,17.318984,2541.1,2541.0,4.72715848]
[1751831544758,12.29818573,2541.1,2541.0,4.72715848]
[1751831544941,12.29818573,2541.1,2541.0,5.39587433]
[1751831546035,10.36918573,2541.1,2541.0,5.39587433]
[1751831549554,0.36918573,2541.1,2541.0,5.39587433]
[1751831550359,0.37018573,2541.2,2541.1,3.9353036]
[1751831550552,0.36978063,2541.2,2541.1,3.9353036]
[1751831550750,0.36978063,2541.2,2541.1,4.86842139]
[1751831551923,0.001,2541.2,2541.1,4.86842139]
[1751831552124,0.36973396,2541.2,2541.1,4.86842139]
[1751831555365,0.36963505,2541.2,2541.1,4.86842139]
[1751831556759,0.001,2541.2,2541.1,4.86842139]
[1751831557943,0.001,2541.2,2541.1,5.68857442]
[1751831561256,0.001,2541.2,2541.1,5.64922139]
[1751831564246,0.001,2541.2,2541.1,5.68857442]
[1751831564446,0.001,2541.2,2541.1,5.64922139]
[1751831566782,0.001,2541.2,2541.1,5.68857442]
[1751831567082,0.001,2541.2,2541.1,5.64922139]
[1751831569179,0.001,2541.2,2541.1,4.86842139]
[1751831571892,0.001,2541.2,2541.0,0.67071585]
[1751831572093,6.94658652,2541.1,2541.0,0.198]
[1751831572296,18.08515422,2541.1,2541.0,0.002]
[1751831572977,22.02045782,2541.1,2541.0,0.002]
[1751831573196,18.08515422,2541.1,2541.0,0.002]
[1751831574793,11.1385677,2541.1,2541.0,0.002]
[1751831575288,11.13875271,2541.1,2541.0,0.002]
[1751831580102,10.7699,2541.1,2541.0,0.002]
[1751831580309,11.13864668,2541.1,2541.0,0.002]
[1751831580895,11.13863832,2541.1,2541.0,0.002]
[1751831581270,15.07394192,2541.1,2541.0,0.002]
[1751831581502,11.13863832,2541.1,2541.0,0.002]
[1751831582601,19.07263832,2541.1,2541.0,0.002]
[1751831586305,10.36873832,2541.1,2541.0,3.93745848]
[1751831586482,0.36873832,2541.1,2541.0,3.93745848]
[1751831586670,0.36860865,2541.1,2541.0,0.198]
[1751831586875,0.36960865,2541.2,2541.0,0.198]
[1751831587077,0.36860865,2541.1,2541.0,0.198]
[1751831587772,0.001,2541.2,2541.1,3.9353036]
[1751831587969,0.36961482,2541.2,2541.1,3.9353036]
[1751831588604,0.36961482,2541.2,2541.1,5.55378884]
[1751831588804,0.36960968,2541.2,2541.1,5.59314187]
[1751831589007,0.001,2541.2,2541.1,5.59314187]
[1751831589791,0.001,2541.2,2541.1,5.55378884]
[1751831590892,0.001,2541.2,2541.1,5.59314187]
[1751831591513,0.001,2541.2,2541.1,6.09314187]
[1751831594222,0.001,2541.5,2541.4,4.72933906]
[1751831594528,0.001,2541.5,2541.4,6.22463282]
[1751831597941,0.001,2541.5,2541.4,14.15663282]
[1751831598116,0.001,2541.5,2541.4,14.11728443]
[1751831598117,1e-08,2541.5,2541.4,14.11728443]
[1751831600223,0.0777211,2542.0,2541.9,3.93406506]
[1751831600441,0.0777211,2542.0,2541.9,5.5502317]
[1751831600608,0.0777211,2542.0,2541.9,5.70689105]
[1751831602598,0.0777211,2542.0,2541.9,5.7462317]
[1751831603151,0.0777211,2542.0,2541.9,5.70689105]
[1751831603698,0.0777211,2542.0,2541.9,5.7462317]
[1751831607197,0.0435909,2542.6,2541.9,5.7462317]
[1751831607198,1e-08,2542.6,2542.5,3.93313667]
[1751831607441,1e-08,2542.6,2542.5,12.65996803]
[1751831607736,1e-08,2542.6,2542.5,12.62063667]
[1751831608801,1e-08,2542.6,2542.5,4.69063667]
[1751831609028,9.44043872,2543.1,2542.5,0.7575]
[1751831609228,10.38874168,2543.1,2542.7,3.9326805]
[1751831609948,10.38874168,2543.1,2542.8,3.93267179]
[1751831610129,10.38874168,2543.1,2542.7,3.93274836]
[1751831610312,10.38874168,2543.1,2542.7,4.43274836]
[1751831610714,10.38874168,2543.1,2542.7,0.5]
[1751831610912,10.38874168,2543.1,2542.6,3.93290247]
[1751831610913,14.32095401,2543.1,2542.6,3.93290247]
[1751831611340,10.38874168,2543.1,2542.7,3.93282289]
[1751831611738,1.08434993,2543.0,2542.8,3.93266524]
[1751831611923,9.44043872,2543.1,2542.8,3.93266524]
[1751831612124,0.8047,2543.1,2542.5,3.93307347]
[1751831612337,0.8047,2543.1,2542.6,0.03932981]
[1751831612652,0.8047,2543.1,2542.9,3.93243437]
[1751831614728,0.8057,2543.1,2542.8,3.93262049]
[1751831616137,0.8057,2543.1,2542.9,3.93251434]
[1751831617349,0.8057,2543.1,2542.9,4.12851434]
[1751831617721,0.8057,2543.1,2543.0,3.93236335]
[1751831618235,0.8057,2543.1,2542.9,0.196]
[1751831618619,0.8057,2543.1,2542.9,4.12851781]
[1751831619848,0.8057,2543.1,2543.0,3.93236335]
[1751831620048,0.001,2543.1,2543.0,4.12836335]
[1751831622154,0.001,2543.1,2543.0,0.196]
[1751831622352,9.50553871,2543.1,2542.7,3.93274066]
[1751831622556,9.50553871,2543.1,2542.9,0.196]
[1751831622756,13.4377939,2543.1,2542.9,0.196]
[1751831623651,17.44453871,2543.1,2542.9,0.196]
[1751831624754,21.3767624,2543.1,2542.9,0.196]
[1751831624955,3.93236449,2543.0,2542.6,3.93290061]
[1751831625152,3.93236449,2543.0,2542.7,0.196]
[1751831625153,18.55173871,2543.0,2542.7,0.196]
[1751831626054,10.7544,2542.8,2542.0,2.55824266]
[1751831626256,10.7544,2542.8,2542.5,4.12912802]
[1751831627038,12.6824,2542.8,2542.5,4.12912802]
[1751831629231,12.5824,2542.8,2542.5,4.12912802]
[1751831629440,12.5824,2542.8,2542.5,3.93307032]
[1751831629640,12.5824,2542.8,2542.7,0.196]
[1751831642364,10.0,2542.8,2542.7,0.196]
[1751831652182,10.36306571,2542.8,2542.7,0.196]
[1751831653202,10.0,2542.8,2542.7,0.196]
[1751831653404,10.36315041,2542.8,2542.7,0.196]
[1751831653906,10.36315609,2542.8,2542.7,0.196]
[1751831659470,10.36347269,2542.8,2542.7,0.196]
[1751831660401,10.36447269,2542.8,2542.7,0.196]
[1751831661796,14.29714533,2542.8,2542.7,0.196]
[1751831662473,14.29714533,2542.8,2542.6,0.002]
[1751831662474,14.69582514,2542.8,2542.6,0.002]
[1751831662799,9.04910581,2542.7,2542.6,0.002]
[1751831663180,9.04911245,2542.7,2542.6,0.002]
[1751831663994,19.04911245,2542.7,2542.6,0.002]
[1751831664399,26.97811245,2542.7,2542.6,0.002]
[1751831664612,10.36337374,2542.7,2542.6,3.93498198]
[1751831664920,10.0,2542.7,2542.6,4.62194018]
[1751831666401,10.36325745,2542.7,2542.6,4.62194018]
[1751831666588,10.36326147,2542.7,2542.6,0.198]
[1751831667205,10.0,2542.7,2542.6,0.198]
[1751831667904,10.36290518,2542.7,2542.6,0.198]
[1751831668105,10.36290928,2542.7,2542.6,0.198]
[1751831668475,10.0,2542.7,2542.6,0.198]
[1751831670331,10.36341607,2542.7,2542.6,0.198]
[1751831671001,10.0,2542.7,2542.6,0.198]
[1751831671198,10.36295059,2542.7,2542.6,0.198]
[1751831671835,10.0,2542.7,2542.6,0.198]
[1751831672001,10.3629548,2542.7,2542.6,0.198]
[1751831672435,10.36295451,2542.7,2542.6,0.198]
[1751831681247,10.0,2542.7,2542.6,0.198]
[1751831681557,10.36365656,2542.7,2542.6,0.198]
[1751831682131,10.36365721,2542.7,2542.6,0.198]
[1751831690557,10.0,2542.7,2542.6,0.198]
[1751831690750,10.36414881,2542.7,2542.6,0.198]
[1751831691260,10.3641488,2542.7,2542.6,0.198]
[1751831696858,10.36421344,2542.7,2542.6,0.198]
[1751831698858,17.30331591,2542.7,2542.6,0.198]
[1751831699867,10.36421344,2542.7,2542.6,0.198]
[1751831700053,17.30445446,2542.7,2542.6,0.198]
[1751831700255,17.30445444,2542.7,2542.6,0.198]
[1751831700656,16.93910247,2542.7,2542.6,0.198]
[1751831700961,17.30445781,2542.7,2542.6,0.198]
[1751831702467,17.30445779,2542.7,2542.6,0.198]
[1751831702862,17.30445779,2542.7,2542.6,4.13098198]
[1751831703045,10.36535532,2542.7,2542.6,4.13098198]
[1751831703865,10.36535532,2542.7,2542.6,0.198]
[1751831705034,17.30445779,2542.7,2542.6,0.198]
[1751831707974,17.30445779,2542.7,2542.6,4.13098198]
[1751831708269,10.36535532,2542.7,2542.6,4.13098198]
[1751831708461,10.0,2542.7,2542.6,0.198]
[1751831708658,10.36532416,2542.7,2542.6,0.198]
[1751831708980,17.30442663,2542.7,2542.6,0.198]
[1751831709453,10.36532416,2542.7,2542.6,0.198]
[1751831709642,17.30442663,2542.7,2542.6,0.198]
[1751831711672,17.30360935,2542.7,2542.6,0.198]
[1751831716475,17.30360935,2542.7,2542.6,4.13098198]
[1751831717771,16.93910247,2542.7,2542.6,4.13098198]
[1751831717972,17.30256138,2542.7,2542.6,4.13098198]
[1751831718746,10.36345921,2542.7,2542.6,4.13098198]
[1751831720175,10.36345921,2542.7,2542.6,0.198]
[1751831721077,17.30256168,2542.7,2542.6,0.198]
[1751831726485,10.36345921,2542.7,2542.6,0.198]
[1751831726676,17.30256168,2542.7,2542.6,0.198]
[1751831727079,16.93910247,2542.7,2542.6,0.198]
[1751831727284,17.30245951,2542.7,2542.6,0.198]
[1751831729182,17.30245951,2542.7,2542.6,0.002]
[1751831732592,10.36335704,2542.7,2542.6,0.002]
[1751831736202,10.36335704,2542.7,2542.6,3.93498198]
[1751831736374,10.0,2542.7,2542.6,4.13098198]
[1751831738784,1.926,2542.8,2542.7,3.9328273]
[1751831739095,2.28959348,2542.8,2542.7,3.9328273]
[1751831739280,1.926,2542.8,2542.7,3.9328273]
[1751831742718,0.001,2542.8,2542.7,3.9328273]
[1751831742889,0.001,2542.8,2542.7,4.85644504]
[1751831743084,0.001,2542.8,2542.7,4.81711677]
[1751831746319,0.001,2542.8,2542.7,3.9328273]
[1751831748317,0.001,2542.8,2542.6,4.13089064]
[1751831748504,0.001,2542.8,2542.6,12.05589064]
[1751831748702,6.93910247,2542.7,2542.6,0.198]
[1751831748903,8.02636662,2542.7,2542.6,0.198]
[1751831749218,6.93910247,2542.7,2542.6,0.198]
[1751831749519,0.001,2542.8,2542.7,3.9328273]
[1751831750816,10.001,2542.8,2542.7,3.9328273]
[1751831752221,10.001,2542.8,2542.6,4.13089689]
[1751831752437,10.001,2542.8,2542.6,12.05589689]
[1751831752720,10.001,2542.8,2542.6,4.13089689]
[1751831753128,10.001,2542.8,2542.7,3.9328273]
[1751831753430,10.001,2542.8,2542.6,4.13090228]
[1751831755033,10.001,2542.8,2542.7,3.9328273]
[1751831755533,0.001,2542.8,2542.7,3.9328273]
[1751831758523,0.001,2542.8,2542.6,0.198]
[1751831758722,6.94010247,2542.8,2542.6,0.198]
[1751831759105,6.94010247,2542.8,2542.6,4.13090691]
[1751831760799,6.94010247,2542.8,2542.6,0.198]
[1751831760999,7.70330247,2542.8,2542.6,4.13096493]
[1751831764632,7.70330247,2542.8,2542.6,0.198]
[1751831765811,7.70330247,2542.8,2542.6,0.002]
[1751831773737,7.70330247,2542.8,2542.6,3.9349583]
[1751831774539,6.94010247,2542.8,2542.6,3.9349583]
[1751831777453,6.94010247,2542.8,2542.6,4.7584583]
[1751831777754,6.94010247,2542.8,2542.6,3.9349583]
[1751831780246,6.94010247,2542.8,2542.6,0.002]
[1751831780422,6.94010247,2542.8,2542.6,3.93497774]
[1751831781643,6.94010247,2542.8,2542.6,0.002]
[1751831786854,6.94010247,2542.8,2542.6,3.93497317]
[1751831790964,8.90764272,2542.8,2542.6,0.002]
[1751831791167,0.36071276,2542.7,2542.6,0.002]
[1751831791664,6.94010247,2542.8,2542.6,0.002]
[1751831791971,0.36071456,2542.7,2542.6,0.002]
[1751831792274,0.3609468,2542.7,2542.6,0.002]
[1751831792473,6.94010247,2542.8,2542.6,0.002]
[1751831792773,0.36094508,2542.7,2542.6,0.002]
[1751831801166,6.94010247,2542.8,2542.6,0.002]
[1751831801337,10.87277849,2542.8,2542.6,0.002]
[1751831801667,0.36140705,2542.7,2542.6,0.002]
[1751831801871,10.87277849,2542.8,2542.6,0.002]
[1751831802070,0.36140523,2542.7,2542.6,0.002]
[1751831803471,0.36151581,2542.7,2542.6,0.002]
[1751831811082,6.94010247,2542.8,2542.6,0.002]
[1751831811384,0.36162814,2542.7,2542.6,0.002]
[1751831811782,0.36151181,2542.7,2542.6,0.002]
[1751831812485,7.30061428,2542.7,2542.6,0.002]
[1751831818589,21.23344158,2542.7,2542.6,0.002]
[1751831820390,16.93910247,2542.7,2542.6,0.002]
[1751831820594,17.30071244,2542.7,2542.6,0.002]
[1751831820763,19.22371244,2542.7,2542.6,0.002]
[1751831821598,23.15653974,2542.7,2542.6,0.002]
[1751831822661,23.15790569,2542.7,2542.6,0.002]
[1751831825797,13.15785811,2542.7,2542.6,0.002]
[1751831825984,19.22503081,2542.7,2542.6,0.002]
[1751831826393,12.28592834,2542.7,2542.6,0.002]
[1751831826560,12.28592834,2542.7,2542.6,3.93498198]
[1751831826763,12.28592834,2542.7,2542.6,4.13098198]
[1751831827385,1.923,2542.7,2542.6,4.88208198]
[1751831827593,1.923,2542.7,2542.6,5.7638031]
[1751831830098,1.923,2542.7,2542.6,4.88208198]
[1751831831294,1.923,2542.7,2542.6,4.13098198]
[1751831831896,1.923,2542.7,2542.6,0.198]
[1751831837584,8.67407619,2542.8,2542.6,0.198]
[1751831839010,0.001,2542.8,2542.6,4.13087688]
[1751831839299,0.001,2542.8,2542.6,5.01359689]
[1751831839672,0.001,2542.8,2542.7,4.7007273]
[1751831839876,0.001,2542.8,2542.7,4.8967273]
[1751831842808,0.001,2542.8,2542.7,0.9639]
[1751831842989,0.001,2542.8,2542.7,0.196]
[1751831844515,0.001,2542.8,2542.7,0.9786]
[1751831845580,0.001,2542.8,2542.7,4.9114273]
[1751831846278,0.001,2542.8,2542.7,5.79625964]
[1751831855393,0.001,2542.8,2542.7,4.9114273]
[1751831855890,0.001,2542.8,2542.7,0.196]
[1751831856587,0.001,2542.8,2542.7,4.1288273]
[1751831871337,0.001,2542.8,2542.7,4.8896273]
[1751831871714,0.001,2542.8,2542.7,4.92895557]
[1751831871909,0.001,2542.8,2542.7,6.60734903]
[1751831872647,0.001,2542.8,2542.7,6.56802076]
[1751831876428,0.001,2542.8,2542.7,14.48502076]
[1751831881473,0.001,2542.8,2542.7,14.48502076]
[1751831889757,0.001,2543.1,2543.0,3.93236335]
[1751831890079,0.001,2543.1,2543.0,12.87898698]
[1751831890392,0.0425909,2543.2,2543.1,3.93220872]
[1751831890556,0.0425909,2543.2,2543.1,4.72750872]
[1751831891495,0.0425909,2543.2,2543.1,4.7668308]
[1751831892785,0.0425909,2543.2,2543.1,4.72750872]
[1751831892955,0.0425909,2543.2,2543.1,6.96606123]
[1751831896897,0.0425909,2543.2,2543.1,7.00538331]
[1751831897684,0.0425909,2543.2,2543.1,6.96606123]
[1751831900207,0.0425909,2543.2,2543.1,14.08576123]
[1751831900407,0.0425909,2543.2,2543.1,11.84720872]
[1751831901514,0.0425909,2543.2,2543.1,3.93220872]
[1751831901690,0.0435909,2543.2,2543.1,11.84720872]
[1751831904819,0.0435909,2543.2,2543.0,4.12829441]
[1751831905125,0.8084909,2543.2,2543.1,7.914]
[1751831905791,0.8084909,2543.2,2543.0,4.12830326]
[1751831905998,0.8084909,2543.2,2543.1,7.915]
[1751831906315,0.8084909,2543.2,2543.0,4.12830326]
[1751831906508,0.8084909,2543.2,2543.1,7.915]
[1751831908122,0.8084909,2543.2,2543.0,4.12830326]
[1751831908411,0.8084909,2543.2,2543.1,7.915]
[1751831909319,0.8084909,2543.2,2543.1,11.84720872]
[1751831911513,0.8084909,2543.2,2543.1,3.93220872]
[1751831911718,0.8084909,2543.2,2543.1,11.84720872]
[1751831913018,0.0435909,2543.2,2543.1,11.84720872]
[1751831914016,0.0435909,2543.2,2543.1,13.44475992]
[1751831935643,0.0435909,2543.2,2543.1,5.52975992]
[1751831935826,0.0435909,2543.2,2543.1,13.44375992]
[1751831947188,1e-08,2543.2,2543.1,26.4395973]
[1751831947780,1e-08,2543.2,2543.1,22.90583611]
[1751831950261,1e-08,2543.2,2543.1,14.23275992]